bitfinex/quotes_SOLUSD_20251117
["timestamp","ask_amount","ask_price","bid_price","bid_amount"]
[1763400744083,8.49849773,134.04,133.99,0.66]
[1763400744281,8.49849773,134.04,133.98,0.1]
[1763400744282,8.49849773,134.0,133.98,0.1]
[1763400744580,8.49849773,133.99,133.98,0.1]
[1763400745078,12.99849773,134.0,133.98,0.1]
[1763400745376,12.99849773,134.0,133.96,1.93593088]
[1763400745377,18.12096,133.97,133.96,1.93593088]
[1763400745676,8.49849773,133.98,133.96,1.93593088]
[1763400745879,8.49849773,133.98,133.84,8.49849773]
[1763400745880,18.12096,133.94,133.86,0.66]
[1763400746065,8.49849773,133.92,133.86,9.15849773]
[1763400746263,8.49849773,133.89,133.83,0.66]
[1763400746468,8.49849773,133.88,133.83,0.66]
[1763400746666,4.5,133.89,133.83,0.66]
[1763400746667,4.5,133.89,133.86,8.49849773]
[1763400746900,12.99849773,133.89,133.83,9.15849773]
[1763400747049,12.99849773,133.89,133.83,0.66]
[1763400747050,8.49849773,133.87,133.83,0.66]
[1763400747456,8.49849773,133.87,133.76,12.99849773]
[1763400747457,8.49849773,133.87,133.81,0.66]
[1763400747657,8.49849773,133.86,133.77,0.66]
[1763400747868,8.49849773,133.86,133.79,18.12096]
[1763400748160,8.49849773,133.86,133.8,0.66]
[1763400748574,8.49849773,133.87,133.8,0.66]
[1763400748761,8.49849773,133.87,133.81,8.49849773]
[1763400748968,8.49849773,133.86,133.81,8.49849773]
[1763400749284,0.29,133.88,133.82,0.66]
[1763400749456,0.29,133.88,133.66,33.55992914]
[1763400749457,8.49849773,133.85,133.8,9.15849773]
[1763400749652,8.49849773,133.86,133.81,8.49849773]
[1763400749857,8.49849773,133.86,133.82,8.49849773]
[1763400750191,18.12096,133.86,133.8,0.66]
[1763400750486,18.12096,133.86,133.8,8.49849773]
[1763400750487,8.49849773,133.85,133.8,8.49849773]
[1763400750976,0.29,133.86,133.81,8.49849773]
[1763400751164,8.49849773,133.85,133.8,8.49849773]
[1763400751363,8.49849773,133.85,133.76,8.49849773]
[1763400751364,10.07882769,133.84,133.76,0.66]
[1763400751566,13.01849773,133.83,133.78,8.49849773]
[1763400751752,13.01849773,133.83,133.79,8.49849773]
[1763400751753,4.52,133.83,133.79,8.49849773]
[1763400752094,4.52,133.88,133.82,8.49849773]
[1763400752267,13.01849773,133.88,133.83,8.49849773]
[1763400752456,8.49849773,133.87,133.82,9.15849773]
[1763400752967,8.49849773,133.85,133.8,8.49849773]
[1763400753176,8.49849773,133.84,133.7,3.90613388]
[1763400753380,26.61945773,133.84,133.8,8.49849773]
[1763400753578,4.52,133.83,133.81,8.49849773]
[1763400753970,4.52,133.83,133.8,8.49849773]
[1763400754187,4.52,133.83,133.81,8.49849773]
[1763400754417,8.49849773,133.87,133.82,9.15849773]
[1763400754574,8.49849773,133.87,133.83,8.49849773]
[1763400754960,13.01849773,133.88,133.83,9.15849773]
[1763400755163,8.49849773,133.87,133.82,8.49849773]
[1763400755377,8.49849773,133.87,133.83,9.15849773]
[1763400755562,8.49849773,133.87,133.83,8.49849773]
[1763400756070,8.49849773,133.87,133.82,8.49849773]
[1763400756792,13.38069092,133.87,133.83,0.66]
[1763400756970,13.38069092,133.87,133.82,0.66]
[1763400757166,13.38069092,133.87,133.82,14.04069092]
[1763400757765,13.38069092,133.87,133.83,0.66]
[1763400757957,13.38069092,133.87,133.82,14.04069092]
[1763400758175,17.90069092,133.88,133.82,14.04069092]
[1763400758380,17.90069092,133.88,133.82,0.66]
[1763400758577,13.38069092,133.87,133.82,14.04069092]
[1763400759014,17.90069092,133.88,133.82,14.04069092]
[1763400759225,4.52,133.88,133.82,14.04069092]
[1763400759390,17.90069092,133.88,133.82,14.04069092]
[1763400759588,13.38069092,133.87,133.82,14.04069092]
[1763400759897,17.90069092,133.88,133.82,14.04069092]
[1763400760323,13.38069092,133.9,133.85,13.38069092]
[1763400760616,13.38069092,133.9,133.83,0.66]
[1763400760617,13.38069092,133.88,133.83,0.66]
[1763400760782,13.38069092,133.88,133.83,14.04069092]
[1763400761184,13.38069092,133.88,133.83,13.38069092]
[1763400761386,13.38069092,133.88,133.84,0.66]
[1763400761780,0.29,133.9,133.84,0.66]
[1763400762395,13.38069092,133.88,133.84,0.66]
[1763400762611,13.38069092,133.89,133.84,0.66]
[1763400763609,13.38069092,133.9,133.84,14.04069092]
[1763400763804,13.38069092,133.9,133.85,13.38069092]
[1763400764113,17.90069092,133.91,133.85,14.10069092]
[1763400764314,116.08069092,133.9,133.85,14.10069092]
[1763400764818,102.7,133.89,133.86,14.10069092]
[1763400764987,13.67069092,134.0,133.88,13.38069092]
[1763400765187,4.54,133.99,133.96,13.38069092]
[1763400765492,4.83,134.0,133.96,13.38069092]
[1763400766384,0.29,133.99,133.93,0.72]
[1763400766589,17.92069092,134.0,133.93,0.72]
[1763400766784,4.54,134.0,133.98,13.38069092]
[1763400767224,0.29,133.99,133.94,13.38069092]
[1763400767398,22.66096,134.0,133.96,13.38069092]
[1763400767589,4.54,134.0,133.96,13.38069092]
[1763400767788,4.83,134.0,133.96,13.38069092]
[1763400768324,4.83,134.0,133.95,13.38069092]
[1763400768616,13.67069092,133.99,133.93,13.38069092]
[1763400769434,13.67069092,133.99,133.93,14.10069092]
[1763400770314,13.38069092,133.99,133.93,14.10069092]
[1763400770617,102.7,133.98,133.93,14.10069092]
[1763400771116,102.7,133.98,133.94,0.72]
[1763400771298,120.82096,133.98,133.94,0.72]
[1763400771498,6.25178582,134.05,133.97,13.38069092]
[1763400771695,13.38069092,134.04,133.98,13.38069092]
[1763400771897,13.38069092,134.03,133.97,13.38069092]
[1763400772407,13.38069092,134.0,133.94,14.10069092]
[1763400772614,17.92069092,133.99,133.94,0.72]
[1763400772805,4.54,133.99,133.94,14.10069092]
[1763400773210,4.54,133.99,133.95,0.72]
[1763400774616,13.38069092,133.98,133.92,0.72]
[1763400774942,13.38069092,133.97,133.92,0.72]
[1763400775439,13.38069092,133.98,133.92,14.10069092]
[1763400775796,18.21069092,133.99,133.93,14.10069092]
[1763400776025,17.92069092,133.99,133.93,14.10069092]
[1763400776320,13.38069092,133.98,133.93,0.72]
[1763400776733,17.92069092,133.99,133.94,0.72]
[1763400776907,13.38069092,133.98,133.94,0.72]
[1763400777503,17.92069092,133.99,133.94,0.72]
[1763400777734,4.54,133.99,133.94,0.72]
[1763400778028,18.21069092,133.99,133.94,0.72]
[1763400778221,13.38069092,133.98,133.94,0.72]
[1763400778619,116.08069092,133.98,133.94,0.72]
[1763400778927,116.08069092,133.97,133.92,0.72]
[1763400779117,102.7,133.97,133.92,0.72]
[1763400779513,102.7,133.97,133.92,14.10069092]
[1763400779914,116.08069092,133.97,133.93,0.72]
[1763400780116,102.7,133.97,133.93,0.72]
[1763400780733,102.7,133.97,133.92,13.38069092]
[1763400780734,13.38069092,133.96,133.91,0.72]
[1763400780941,13.38069092,133.95,133.91,0.72]
[1763400781108,17.90069092,133.95,133.91,0.72]
[1763400781313,13.38069092,133.94,133.89,0.72]
[1763400781519,17.90069092,133.95,133.89,14.10069092]
[1763400781715,13.38069092,133.93,133.87,13.38069092]
[1763400781935,0.29,133.93,133.87,0.72]
[1763400782129,13.38069092,133.93,133.88,0.72]
[1763400782309,4.81,133.95,133.88,14.10069092]
[1763400782310,13.38069092,133.94,133.88,14.10069092]
[1763400782739,13.38069092,133.94,133.89,0.72]
[1763400783046,4.52,133.95,133.89,14.10069092]
[1763400783413,13.38069092,133.94,133.9,0.72]
[1763400783903,13.67069092,133.93,133.87,0.72]
[1763400784106,13.38069092,133.93,133.87,13.38069092]
[1763400784336,13.38069092,133.94,133.88,14.10069092]
[1763400784732,4.52,133.95,133.89,0.72]
[1763400785031,13.38069092,133.94,133.89,0.72]
[1763400785231,13.38069092,133.93,133.87,14.10069092]
[1763400785532,13.38069092,133.91,133.85,13.38069092]
[1763400785708,17.90069092,133.91,133.85,14.10069092]
[1763400785911,17.90069092,133.91,133.84,13.38069092]
[1763400786242,0.29,133.9,133.81,0.72]
[1763400786409,0.29,133.9,133.82,13.38069092]
[1763400786410,13.38069092,133.88,133.82,13.38069092]
[1763400786610,13.67069092,133.9,133.84,13.38069092]
[1763400786828,13.67069092,133.9,133.84,14.10069092]
[1763400787025,13.38069092,133.9,133.85,0.72]
[1763400787634,13.67069092,133.9,133.85,0.72]
[1763400787940,4.52,133.91,133.86,13.38069092]
[1763400788140,4.52,133.94,133.89,13.38069092]
[1763400788338,5.05424577,133.93,133.9,13.38069092]
[1763400788518,5.06914474,133.92,133.89,13.38069092]
[1763400788716,4.52,133.94,133.89,13.38069092]
[1763400788925,5.06615296,133.93,133.9,14.10069092]
[1763400789133,4.52,133.94,133.91,13.38069092]
[1763400789330,4.54,133.98,133.93,13.38069092]
[1763400789539,5.07180186,133.97,133.94,14.10069092]
[1763400789818,4.54,133.98,133.87,9.78882769]
[1763400789819,5.06958393,133.96,133.92,13.38069092]
[1763400790041,4.54,133.98,133.92,13.38069092]
[1763400790251,18.74101748,133.97,133.91,13.38069092]
[1763400790439,18.74101748,133.97,133.9,13.38069092]
[1763400790440,18.45101748,133.96,133.9,13.38069092]
[1763400790754,18.45101748,133.96,133.89,14.10069092]
[1763400790755,18.45101748,133.95,133.89,14.10069092]
[1763400790917,5.07032656,133.94,133.89,14.10069092]
[1763400791113,5.07032656,133.93,133.9,13.38069092]
[1763400791312,5.07032694,133.92,133.9,13.38069092]
[1763400791627,4.54,133.94,133.9,13.38069092]
[1763400791966,0.15003393,133.91,133.9,13.38069092]
[1763400792149,0.15003393,133.91,133.9,14.09069092]
[1763400795009,0.15003393,133.91,133.9,13.38069092]
[1763400795215,0.15003393,133.91,133.89,13.38069092]
[1763400795445,0.15003393,133.91,133.9,0.71]
[1763400795649,0.15003393,133.91,133.89,13.38069092]
[1763400795858,0.15003393,133.91,133.88,13.38069092]
[1763400796167,0.15003393,133.91,133.89,0.71]
[1763400797177,0.15003393,133.91,133.9,13.38069092]
[1763400797469,0.15003393,133.91,133.89,14.09069092]
[1763400797981,0.15003393,133.91,133.9,14.04069092]
[1763400798127,0.15003393,133.91,133.9,0.66]
[1763400798766,0.15003393,133.91,133.87,13.38069092]
[1763400798945,0.15003393,133.91,133.86,14.04069092]
[1763400800773,0.15003393,133.91,133.87,14.04069092]
[1763400800945,0.15003393,133.91,133.87,0.66]
[1763400801140,102.7,133.9,133.88,0.66]
[1763400801340,102.7,133.9,133.88,14.04069092]
[1763400801536,102.7,133.9,133.89,13.38069092]
[1763400801873,0.15003393,133.91,133.89,14.04069092]
[1763400802174,0.15003393,133.91,133.9,14.04069092]
[1763400803472,0.15003393,133.91,133.89,13.38069092]
[1763400803974,0.15003393,133.91,133.89,14.04069092]
[1763400804181,0.15003393,133.91,133.9,14.04069092]
[1763400805354,0.15003393,133.91,133.85,18.12096]
[1763400805557,0.15003393,133.91,133.88,13.38069092]
[1763400805750,102.85003393,133.91,133.88,14.04069092]
[1763400806565,0.29,133.9,133.84,14.04069092]
[1763400806768,13.67069092,133.9,133.84,14.04069092]
[1763400807009,13.67069092,133.9,133.83,13.38069092]
[1763400807156,13.38069092,133.88,133.82,14.04069092]
[1763400807364,13.38069092,133.86,133.79,0.66]
[1763400807667,18.19069092,133.86,133.79,14.04069092]
[1763400808055,4.81,133.86,133.79,14.04069092]
[1763400808271,13.38069092,133.83,133.76,0.1]
[1763400808473,13.38069092,133.83,133.77,13.38069092]
[1763400808647,0.29,133.83,133.76,0.76]
[1763400808852,13.38069092,133.84,133.78,13.38069092]
[1763400809453,13.38069092,133.82,133.76,13.48069092]
[1763400809958,13.67069092,133.82,133.76,13.48069092]
[1763400810156,0.29,133.82,133.76,0.1]
[1763400810357,13.67069092,133.81,133.76,0.1]
[1763400810869,0.29,133.8,133.76,0.1]
[1763400811453,13.67069092,133.8,133.76,0.1]
[1763400811654,0.29,133.8,133.76,0.1]
[1763400811854,0.14316816,133.77,133.76,0.1]
[1763400812282,0.14316816,133.77,133.76,18.68069092]
[1763400812493,0.14316816,133.77,133.76,0.76]
[1763400812806,0.14316816,133.77,133.76,14.14069092]
[1763400812956,0.14111266,133.79,133.77,13.38069092]
[1763400813294,0.86667984,133.86,133.79,9.78882769]
[1763400813493,14.25479519,133.85,133.79,13.38069092]
[1763400813792,14.25479519,133.85,133.79,14.04069092]
[1763400814080,0.86379802,133.82,133.77,13.38069092]
[1763400814290,14.24448894,133.82,133.76,14.14069092]
[1763400814450,14.24448894,133.82,133.76,0.1]
[1763400814451,13.38069092,133.79,133.76,0.1]
[1763400814665,31.50165092,133.77,133.76,0.1]
[1763400814854,32.21165092,133.77,133.76,0.1]
[1763400815765,13.38069092,133.79,133.76,0.1]
[1763400815969,0.71,133.79,133.76,0.1]
[1763400816887,14.09069092,133.78,133.76,0.1]
[1763400817387,0.71,133.77,133.76,0.1]
[1763400817686,14.09069092,133.77,133.76,0.1]
[1763400818983,9.26590938,133.77,133.76,0.1]
[1763400819186,4.54,133.79,133.76,0.1]
[1763400819187,0.71,133.79,133.76,0.1]
[1763400819392,0.15379802,133.82,133.76,0.1]
[1763400819560,0.71,133.79,133.76,0.1]
[1763400820678,8.55590938,133.77,133.76,0.1]
[1763400821056,9.26590938,133.77,133.76,0.1]
[1763400821585,18.12096,133.74,133.68,2.54397727]
[1763400821884,18.12096,133.72,133.68,2.54397727]
[1763400822271,0.71,133.72,133.68,2.54397727]
[1763400822458,8.55590938,133.74,133.68,11.09988665]
[1763400822658,8.55590938,133.77,133.71,8.55590938]
[1763400823067,9.26590938,133.78,133.72,8.55590938]
[1763400823690,8.55590938,133.76,133.68,2.54397727]
[1763400823876,8.55590938,133.75,133.69,8.55590938]
[1763400824069,8.55590938,133.75,133.69,9.21590938]
[1763400824697,8.55590938,133.71,133.68,2.54397727]
[1763400825076,9.26590938,133.7,133.68,2.54397727]
[1763400825279,0.71,133.7,133.68,2.54397727]
[1763400825492,0.71,133.74,133.68,2.54397727]
[1763400825791,0.71,133.74,133.68,2.23397727]
[1763400825792,35.23277876,133.69,133.68,2.23397727]
[1763400825964,31.9451721,133.69,133.62,0.1]
[1763400826164,0.61,133.68,133.62,0.1]
[1763400826369,0.61,133.68,133.63,8.55590938]
[1763400826567,8.55590938,133.69,133.62,0.1]
[1763400826795,18.12096,133.7,133.42,1.10165617]
[1763400826796,18.12096,133.63,133.42,1.10165617]
[1763400827091,8.55590938,133.61,133.47,18.12096]
[1763400827310,8.55590938,133.5,133.44,8.55590938]
[1763400827464,8.55590938,133.5,133.43,3.91679963]
[1763400827465,8.55590938,133.51,133.43,0.66]
[1763400827659,9.78882769,133.51,133.42,1.10165617]
[1763400827897,8.55590938,133.48,133.42,9.65756555]
[1763400828261,9.16590938,133.47,133.42,1.10165617]
[1763400828500,0.61,133.46,133.42,1.10165617]
[1763400828664,8.55590938,133.43,133.42,1.10165617]
[1763400829162,0.61,133.47,133.42,1.10165617]
[1763400829363,8.55590938,133.46,133.42,1.10165617]
[1763400829558,18.12096,133.48,133.42,1.76165617]
[1763400829785,8.55590938,133.46,133.42,1.10165617]
[1763400829989,8.55590938,133.48,133.42,1.10165617]
[1763400830190,8.55590938,133.51,133.43,0.66]
[1763400830364,8.55590938,133.49,133.43,9.21590938]
[1763400830700,8.55590938,133.5,133.43,9.21590938]
[1763400830868,8.55590938,133.49,133.43,0.66]
[1763400831199,8.55590938,133.48,133.43,0.66]
[1763400831500,18.73096,133.52,133.44,9.21590938]
[1763400831665,9.16590938,133.51,133.44,9.21590938]
[1763400831867,0.13912659,133.45,133.44,9.21590938]
[1763400832063,0.13912659,133.45,133.42,1.10165617]
[1763400832286,0.13912659,133.45,133.43,0.66]
[1763400832686,0.13912659,133.45,133.42,1.10165617]
[1763400832892,0.13912659,133.45,133.42,1.76165617]
[1763400833190,0.13912659,133.45,133.43,0.66]
[1763400833422,0.13912659,133.45,133.44,8.55590938]
[1763400833596,0.15510947,133.46,133.45,8.55590938]
[1763400833795,0.13719184,133.47,133.45,19.00473707]
[1763400833995,0.16048597,133.48,133.46,9.21590938]
[1763400834208,0.16048597,133.48,133.47,13.15590938]
[1763400834422,0.16048597,133.48,133.47,0.66]
[1763400834591,0.16048597,133.48,133.45,9.21590938]
[1763400834785,0.16048597,133.48,133.46,0.66]
[1763400835210,0.16048597,133.48,133.46,9.21590938]
[1763400835607,0.16048597,133.48,133.47,0.66]
[1763400836123,0.16048597,133.48,133.47,9.21590938]
[1763400837220,0.16048597,133.48,133.45,8.55590938]
[1763400837388,0.16048597,133.48,133.46,8.55590938]
[1763400837598,0.16048597,133.48,133.47,8.55590938]
[1763400837922,0.16048597,133.48,133.46,0.66]
[1763400838102,0.16048597,133.48,133.46,9.21590938]
[1763400838298,0.16048597,133.48,133.42,1.10165617]
[1763400838299,0.16048597,133.48,133.44,8.55590938]
[1763400838501,0.16048597,133.48,133.43,0.66]
[1763400838706,0.16048597,133.48,133.44,8.55590938]
[1763400839548,0.16048597,133.48,133.42,5.70165617]
[1763400839549,0.16048597,133.48,133.45,9.21590938]
[1763400840196,0.16048597,133.48,133.46,0.66]
[1763400840399,0.71,133.6,133.51,18.12096]
[1763400840720,0.71,133.6,133.52,17.11181876]
[1763400840930,0.71,133.63,133.59,8.55590938]
[1763400841511,9.26590938,133.63,133.58,8.55590938]
[1763400841718,0.71,133.63,133.58,8.55590938]
[1763400841939,0.71,133.62,133.58,8.55590938]
[1763400842450,0.71,133.62,133.59,8.55590938]
[1763400842648,0.71,133.65,133.6,8.55590938]
[1763400842947,9.26590938,133.67,133.62,8.55590938]
[1763400843246,0.71,133.67,133.63,8.55590938]
[1763400843459,0.71,133.67,133.64,8.55590938]
[1763400843751,3.91485249,133.73,133.64,8.55590938]
[1763400843752,0.71,133.7,133.64,8.55590938]
[1763400843928,8.55590938,133.7,133.64,8.55590938]
[1763400844257,0.71,133.7,133.65,8.55590938]
[1763400844409,0.71,133.72,133.68,8.55590938]
[1763400844609,0.71,133.75,133.71,8.55590938]
[1763400844831,0.2,133.76,133.72,8.55590938]
[1763400845009,9.46590938,133.76,133.7,8.55590938]
[1763400845218,9.46590938,133.76,133.72,8.55590938]
[1763400845219,0.91,133.76,133.72,8.55590938]
[1763400845411,0.91,133.76,133.69,0.66]
[1763400845412,0.2,133.76,133.75,8.55590938]
[1763400845723,0.2,133.76,133.69,10.44882769]
[1763400845724,0.2,133.76,133.71,4.6]
[1763400846108,0.2,133.76,133.75,8.55590938]
[1763400846740,0.2,133.76,133.75,9.21590938]
[1763400847518,0.2,133.76,133.75,17.77181876]
[1763400847710,0.2,133.76,133.75,9.21590938]
[1763400848220,0.71,133.85,133.75,27.56064645]
[1763400848535,0.71,133.85,133.8,8.55590938]
[1763400848725,9.26590938,133.85,133.79,8.55590938]
[1763400849043,0.71,133.85,133.8,8.55590938]
[1763400849237,0.71,133.85,133.81,8.55590938]
[1763400849819,0.71,133.88,133.82,0.66]
[1763400850027,0.71,133.88,133.84,8.55590938]
[1763400850335,9.26590938,133.91,133.85,8.55590938]
[1763400850513,9.26590938,133.91,133.82,0.66]
[1763400850837,8.55590938,133.89,133.84,8.55590938]
[1763400851021,0.71,133.9,133.84,8.55590938]
[1763400851220,8.55590938,133.89,133.84,8.55590938]
[1763400851446,9.26590938,133.89,133.84,8.55590938]
[1763400851665,9.22590938,133.88,133.82,0.66]
[1763400851838,18.12096,133.93,133.79,13.15590938]
[1763400851839,8.55590938,133.85,133.79,13.15590938]
[1763400852563,8.55590938,133.85,133.78,0.68]
[1763400852564,18.79096,133.84,133.75,0.68]
[1763400852740,8.55590938,133.81,133.76,8.55590938]
[1763400853170,0.67,133.81,133.76,8.55590938]
[1763400853664,9.22590938,133.81,133.73,4.6]
[1763400853873,0.67,133.81,133.76,8.55590938]
[1763400854161,8.55590938,133.84,133.79,8.55590938]
[1763400854353,8.55590938,133.84,133.75,9.78882769]
[1763400854354,0.67,133.83,133.78,4.6]
[1763400854560,9.22590938,133.83,133.78,4.6]
[1763400854735,0.67,133.83,133.78,4.6]
[1763400854938,9.22590938,133.82,133.78,4.6]
[1763400855157,8.55590938,133.83,133.78,4.6]
[1763400855671,9.22590938,133.83,133.78,4.6]
[1763400855880,0.67,133.86,133.79,0.68]
[1763400856173,0.67,133.86,133.81,8.55590938]
[1763400856341,4.6,133.94,133.82,8.55590938]
[1763400856342,0.67,133.88,133.82,8.55590938]
[1763400856542,9.22590938,133.88,133.82,9.23590938]
[1763400856950,0.67,133.88,133.83,8.55590938]
[1763400857462,9.22590938,133.88,133.82,0.68]
[1763400857667,14.38882769,133.94,133.83,8.55590938]
[1763400857668,0.67,133.9,133.83,8.55590938]
[1763400857841,9.22590938,133.9,133.84,8.55590938]
[1763400858165,9.22590938,133.9,133.83,8.55590938]
[1763400858166,8.55590938,133.89,133.83,8.55590938]
[1763400858344,8.55590938,133.85,133.77,0.72]
[1763400858666,18.12096,133.87,133.77,8.55590938]
[1763400858667,8.55590938,133.83,133.77,8.55590938]
[1763400858855,0.67,133.86,133.78,9.27590938]
[1763400859063,8.55590938,133.83,133.78,9.27590938]
[1763400859253,8.55590938,133.82,133.76,13.87590938]
[1763400859459,18.12096,133.84,133.76,13.87590938]
[1763400859764,0.67,133.83,133.73,0.72]
[1763400859967,8.55590938,133.81,133.75,13.15590938]
[1763400860154,8.55590938,133.81,133.76,8.55590938]
[1763400860362,9.22590938,133.81,133.76,8.55590938]
[1763400860541,0.67,133.81,133.76,8.55590938]
[1763400860743,0.67,133.84,133.78,8.55590938]
[1763400860959,0.67,133.87,133.8,8.55590938]
[1763400861177,0.67,133.89,133.84,8.55590938]
[1763400861469,9.22590938,133.89,133.84,8.55590938]
[1763400861667,0.67,133.89,133.84,9.27590938]
[1763400861838,0.67,133.89,133.85,8.55590938]
[1763400862258,0.67,133.89,133.84,0.72]
[1763400862462,0.67,133.89,133.84,8.55590938]
[1763400862776,8.55590938,133.86,133.8,4.6]
[1763400862946,8.55590938,133.85,133.8,4.6]
[1763400863145,8.55590938,133.86,133.8,4.6]
[1763400863389,0.67,133.88,133.8,8.55590938]
[1763400863565,8.55590938,133.86,133.8,8.55590938]
[1763400863745,8.55590938,133.83,133.78,8.55590938]
[1763400864164,9.22590938,133.83,133.78,8.55590938]
[1763400864969,0.67,133.83,133.79,8.55590938]
[1763400865149,9.22590938,133.85,133.79,8.55590938]
[1763400865340,0.67,133.85,133.79,8.55590938]
[1763400865545,8.55590938,133.86,133.81,8.55590938]
[1763400865972,9.22590938,133.86,133.81,8.55590938]
[1763400866555,0.67,133.86,133.82,8.55590938]
[1763400866861,0.67,133.86,133.81,8.55590938]
[1763400867267,0.67,133.86,133.82,8.55590938]
[1763400867479,0.67,133.86,133.81,8.55590938]
[1763400867963,9.22590938,133.86,133.81,8.55590938]
[1763400868364,8.55590938,133.86,133.81,8.55590938]
[1763400868559,0.67,133.85,133.8,8.55590938]
[1763400868956,8.55590938,133.86,133.8,9.27590938]
[1763400869151,8.55590938,133.86,133.81,8.55590938]
[1763400869570,9.22590938,133.86,133.81,8.55590938]
[1763400869769,0.67,133.86,133.81,9.27590938]
[1763400869968,9.22590938,133.86,133.81,9.27590938]
[1763400870164,8.55590938,133.82,133.74,0.72]
[1763400870374,18.12096,133.83,133.76,8.55590938]
[1763400870566,8.55590938,133.8,133.75,8.55590938]
[1763400870763,0.67,133.82,133.74,8.55590938]
[1763400870967,8.55590938,133.8,133.74,9.27590938]
[1763400871179,8.55590938,133.79,133.74,9.27590938]
[1763400871488,8.55590938,133.79,133.73,8.55590938]
[1763400871777,9.22590938,133.79,133.74,8.55590938]
[1763400872160,0.67,133.78,133.74,8.55590938]
[1763400872580,0.67,133.81,133.77,8.55590938]
[1763400872760,0.67,133.81,133.75,0.72]
[1763400872761,0.67,133.81,133.76,8.55590938]
[1763400872958,9.22590938,133.81,133.76,8.55590938]
[1763400873479,0.67,133.81,133.76,8.55590938]
[1763400873789,0.67,133.84,133.79,8.55590938]
[1763400874083,9.22590938,133.89,133.83,8.55590938]
[1763400874257,8.55590938,133.88,133.83,8.55590938]
[1763400874461,8.55590938,133.88,133.8,0.72]
[1763400874462,8.55590938,133.87,133.82,8.55590938]
[1763400874774,9.22590938,133.87,133.82,8.55590938]
[1763400875299,9.22590938,133.87,133.8,0.72]
[1763400875669,0.67,133.87,133.83,8.55590938]
[1763400876257,0.67,133.87,133.8,0.72]
[1763400876482,0.67,133.87,133.83,8.55590938]
[1763400876789,0.67,133.87,133.84,8.55590938]
[1763400878075,0.67,133.87,133.81,0.72]
[1763400878280,0.67,133.87,133.84,8.55590938]
[1763400878482,0.67,133.89,133.84,8.55590938]
[1763400878699,0.67,133.88,133.84,8.55590938]
[1763400878898,0.67,133.88,133.84,13.37798214]
[1763400879198,14.04798214,133.88,133.83,13.37798214]
[1763400879402,0.67,133.88,133.84,13.37798214]
[1763400879578,14.04798214,133.9,133.85,13.37798214]
[1763400879891,0.67,133.9,133.87,13.37798214]
[1763400880295,13.37798214,133.93,133.88,13.37798214]
[1763400880518,0.67,133.92,133.89,13.37798214]
[1763400880676,0.67,133.92,133.88,13.37798214]
[1763400881688,0.67,133.92,133.89,13.37798214]
[1763400881894,18.61798214,133.94,133.89,13.37798214]
[1763400882198,0.66,133.93,133.9,13.37798214]
[1763400882581,0.66,133.93,133.83,5.3]
[1763400882582,13.37798214,133.92,133.83,5.3]
[1763400882784,14.03798214,133.93,133.88,13.37798214]
[1763400883103,0.66,133.93,133.9,13.37798214]
[1763400883680,0.66,133.93,133.89,13.37798214]
[1763400883883,0.66,133.93,133.86,0.72]
[1763400884186,0.66,133.93,133.89,13.37798214]
[1763400884382,14.03798214,133.93,133.88,13.37798214]
[1763400884679,18.12096,133.95,133.89,13.37798214]
[1763400884680,14.03798214,133.95,133.89,13.37798214]
[1763400884879,0.66,133.94,133.86,0.72]
[1763400885095,0.66,133.94,133.9,13.37798214]
[1763400885491,31.69894214,133.96,133.91,13.37798214]
[1763400885692,0.2,133.96,133.93,13.37798214]
[1763400885999,0.2,133.96,133.91,0.72]
[1763400886197,0.2,133.96,133.94,13.37798214]
[1763400886519,0.2,133.96,133.95,13.37798214]
[1763400886878,0.86,133.96,133.87,18.86795335]
[1763400887077,0.86,133.96,133.85,5.3]
[1763400887279,13.37798214,133.94,133.89,13.37798214]
[1763400887508,0.66,133.95,133.9,13.37798214]
[1763400887684,0.2,133.96,133.93,13.37798214]
[1763400888003,14.23798214,133.96,133.9,4.58]
[1763400888206,0.66,133.95,133.9,17.95798214]
[1763400888510,0.66,133.95,133.91,13.37798214]
[1763400888808,13.57798214,133.96,133.91,13.37798214]